bitfinex/quotes_SOLUSD_20240827
["timestamp","ask_amount","ask_price","bid_price","bid_amount"]
[1724742856304,9.80662172,158.69,158.67,6.3023]
[1724742857089,9.80662172,158.69,158.66,7.56317461]
[1724742858083,9.80662172,158.69,158.66,6.3027]
[1724742862541,9.80662172,158.69,158.66,7.56314222]
[1724742863088,9.80662172,158.69,158.66,7.56312807]
[1724742863289,9.80662172,158.69,158.66,7.56312783]
[1724742864303,9.80662172,158.69,158.66,6.3027]
[1724742864610,9.80662172,158.69,158.66,7.56313046]
[1724742865008,1.09782136,158.68,158.66,7.56312961]
[1724742865193,1.09782136,158.68,158.66,6.3027]
[1724742873032,1.09782136,158.68,158.67,6.3023]
[1724742874617,1.09782136,158.68,158.65,15.7577]
[1724742874919,1.09782136,158.68,158.66,6.3027]
[1724742881628,1.09782136,158.68,158.67,6.3023]
[1724742884712,1.09782136,158.68,158.67,52.88099568]
[1724742885054,1.09782136,158.68,158.67,55.91213193]
[1724742885194,1.09782136,158.68,158.67,54.14342187]
[1724742885395,1.09782136,158.68,158.67,57.49026649]
[1724742885594,1.09782136,158.68,158.67,63.4004476]
[1724742886622,1.09782136,158.68,158.67,83.4004476]
[1724742888310,1.09782136,158.68,158.67,77.49024728]
[1724742888507,1.09782136,158.68,158.67,74.14340266]
[1724742888711,1.09782136,158.68,158.67,77.48964703]
[1724742889132,1.09782136,158.68,158.67,76.2269348]
[1724742889325,1.09782136,158.68,158.67,72.88069043]
[1724742890011,1.09782136,158.68,158.67,27.88069043]
[1724742891117,1.09782136,158.68,158.67,72.88069043]
[1724742892030,1.09782136,158.68,158.67,71.3023]
[1724742892213,1.09782136,158.68,158.67,72.88063969]
[1724742894008,1.09782136,158.68,158.67,74.14071018]
[1724742894817,0.8225,158.74,158.71,6.3007]
[1724742896029,0.8225,158.74,158.71,7.56073482]
[1724742896213,0.8225,158.74,158.72,6.3002]
[1724742896612,0.8225,158.74,158.73,6.3]
[1724742897130,0.8225,158.74,158.72,6.3003]
[1724742903449,12.18974405,158.74,158.67,65.0]
[1724742903732,9.80662172,158.71,158.61,38.267]
[1724742903940,1.56062233,158.72,158.62,6.18863123]
[1724742904124,9.80662172,158.71,158.68,15.754]
[1724742904519,9.80662172,158.71,158.69,6.3015]
[1724742904722,9.80662172,158.71,158.68,15.754]
[1724742904912,1.56062233,158.72,158.68,22.0559]
[1724742904913,9.80662172,158.69,158.68,22.0559]
[1724742906045,9.80662172,158.69,158.68,15.754]
[1724742906346,9.80662172,158.69,158.65,6.3031]
[1724742906511,21.8769,158.69,158.64,20.9642]
[1724742906714,9.80662172,158.66,158.64,20.9642]
[1724742907225,9.80662172,158.66,158.65,6.3031]
[1724742907418,9.80662172,158.68,158.65,6.3031]
[1724742910033,9.80662172,158.66,158.65,6.3031]
[1724742912428,21.8769,158.69,158.65,6.3031]
[1724742912644,9.80662172,158.67,158.65,6.3031]
[1724742914347,0.3578,158.63,158.61,15.7616]
[1724742915735,0.3578,158.63,158.62,6.3043]
[1724742917755,15.6435,158.63,158.58,15.7647]
[1724742917933,9.80662172,158.61,158.58,22.0703]
[1724742918449,9.80662172,158.61,158.58,20.9733]
[1724742919464,1.09849835,158.6,158.58,20.9733]
[1724742919628,2.65912068,158.6,158.55,15.7677]
[1724742919830,1.09849835,158.6,158.58,6.3057]
[1724742920642,9.80662172,158.61,158.58,6.3057]
[1724742920954,9.80662172,158.61,158.59,6.3055]
[1724742921156,31.68352172,158.63,158.6,6.3051]
[1724742922841,9.80662172,158.61,158.58,22.0703]
[1724742923032,9.80662172,158.61,158.58,15.7647]
[1724742923628,31.68352172,158.63,158.58,15.7647]
[1724742923852,20.0,158.62,158.58,15.7647]
[1724742924778,20.0,158.62,158.58,22.0705]
[1724742929872,20.0,158.62,158.58,21.85080147]
[1724742930559,1.09849025,158.61,158.58,21.85080147]
[1724742937470,1.09849025,158.61,158.6,6.3051]
[1724742943454,10.90511197,158.61,158.58,15.54500147]
[1724742944359,10.90511197,158.61,158.58,21.85060147]
[1724742945956,10.90511197,158.61,158.59,6.3054]
[1724742946163,1.09849025,158.61,158.6,6.3051]
[1724742949985,1.09849025,158.61,158.6,7.5659835]
[1724742951085,1.09849025,158.61,158.6,6.3051]
[1724742952062,1.09849025,158.61,158.6,7.88430178]
[1724742952261,1.09849025,158.61,158.6,6.3051]
[1724742952692,1.09849025,158.61,158.6,7.88429757]
[1724742955684,1.09849025,158.61,158.6,6.3051]
[1724742955991,1.09849025,158.61,158.6,7.88425767]
[1724742956369,1.09849025,158.61,158.6,9.14504487]
[1724742956567,1.09849025,158.61,158.6,54.14504487]
[1724742956777,1.09849025,158.61,158.6,74.14504487]
[1724742957981,32.67322172,158.71,158.66,6.3025]
[1724742958487,1.09785442,158.7,158.67,6.3023]
[1724742959178,21.09785442,158.7,158.67,6.3023]
[1724742959494,21.09785442,158.7,158.66,7.56311136]
[1724742960393,21.09785442,158.7,158.67,1.57849094]
[1724742960579,21.09785442,158.7,158.66,6.3027]
[1724742960771,9.80662172,158.69,158.66,6.3027]
[1724742960977,9.80662172,158.69,158.65,22.0604]
[1724742961374,1.56062233,158.68,158.65,22.0604]
[1724742961687,9.80662172,158.67,158.65,22.0604]
[1724742964191,24.31722233,158.66,158.63,6.3035]
[1724742964701,9.80662172,158.65,158.62,15.7606]
[1724742964865,1.56062233,158.64,158.62,15.7606]
[1724742965186,9.80662172,158.65,158.62,15.7606]
[1724742965501,22.7566,158.66,158.62,15.7606]
[1724742965502,22.7566,158.66,158.63,6.3039]
[1724742971674,22.7566,158.66,158.62,15.7606]
[1724742971882,32.56322172,158.66,158.62,15.7606]
[1724742973697,32.56322172,158.66,158.63,6.3039]
[1724742974403,22.7566,158.66,158.63,6.3039]
[1724742975402,16.3142,158.66,158.64,6.3034]
[1724742975596,6.3019,158.69,158.64,6.3034]
[1724742975787,20.0,158.68,158.64,6.3034]
[1724742977495,20.0,158.68,158.65,6.3031]
[1724742977702,20.0,158.69,158.65,6.3031]
[1724742978499,20.0,158.69,158.66,6.3027]
[1724742978694,20.0,158.69,158.65,1.26045715]
[1724742978896,1.09800015,158.68,158.64,15.758]
[1724742979598,10.90462187,158.68,158.64,15.758]
[1724742980884,10.90462187,158.68,158.64,22.0614]
[1724742984495,10.90462187,158.68,158.65,6.303]
[1724742984688,1.09800015,158.68,158.65,7.56352752]
[1724742984890,1.09800015,158.68,158.65,6.303]
[1724742986310,1.09800015,158.68,158.66,6.3027]
[1724742986607,1.09800015,158.68,158.67,6.3023]
[1724742987089,1.09800015,158.68,158.66,6.3027]
[1724742988104,1.09800015,158.68,158.65,6.3031]
[1724742988283,10.90462187,158.68,158.65,6.3031]
[1724742988907,12.4652442,158.68,158.65,6.3031]
[1724742989297,10.90462187,158.68,158.65,6.3031]
[1724742989620,12.4652442,158.68,158.65,6.3031]
[1724742991595,10.90462187,158.68,158.65,6.3031]
[1724742992192,1.56062233,158.67,158.64,15.758]
[1724742992399,1.56062233,158.67,158.64,22.0615]
[1724742994520,9.80662172,158.66,158.64,15.758]
[1724742994702,9.80662172,158.66,158.64,22.0615]
[1724742995391,9.80662172,158.66,158.64,15.758]
[1724742996390,9.80662172,158.66,158.62,6.3042]
[1724742996605,9.80662172,158.66,158.63,1.57887095]
[1724742996817,9.80662172,158.66,158.64,1.57887061]
[1724742997021,9.80662172,158.66,158.62,6.3042]
[1724742997198,9.80662172,158.66,158.63,1.57887095]
[1724742997399,9.80662172,158.66,158.64,1.57887095]
[1724742997719,9.80662172,158.66,158.63,6.3039]
[1724742997896,9.80662172,158.66,158.64,1.57887061]
[1724742998087,9.80662172,158.66,158.63,6.3039]
[1724742998294,1.09800015,158.68,158.64,7.88237027]
[1724742998493,1.09800015,158.68,158.65,7.88193749]
[1724742998693,1.09800015,158.68,158.65,6.3031]
[1724742999096,20.0,158.69,158.65,6.3031]
[1724743000215,11.36724405,158.68,158.65,6.3031]
[1724743001200,9.80662172,158.68,158.65,6.3031]
[1724743011729,21.56062233,158.69,158.65,6.3031]
[1724743011927,31.36724405,158.69,158.65,6.3031]
[1724743012128,16.10922172,158.67,158.63,15.7591]
[1724743012421,9.80662172,158.65,158.63,15.7591]
[1724743012597,9.80662172,158.65,158.63,22.063]
[1724743014518,26.59667823,158.69,158.65,6.3031]
[1724743014703,9.80662172,158.67,158.63,15.7591]
[1724743014905,9.80662172,158.67,158.64,6.3035]
[1724743015223,9.80662172,158.67,158.63,22.063]
[1724743016429,11.36724405,158.67,158.63,22.063]
[1724743017513,9.80662172,158.67,158.63,22.063]
[1724743019623,1.09822783,158.66,158.63,22.063]
[1724743020636,10.90484955,158.66,158.63,22.063]
[1724743020818,17.20764955,158.66,158.61,6.3047]
[1724743021025,1.0982,158.62,158.6,22.0676]
[1724743021535,10.90482172,158.62,158.6,22.0676]
[1724743021744,10.90482172,158.62,158.6,15.7628]
[1724743022232,10.90482172,158.62,158.59,7.56872436]
[1724743022440,10.90482172,158.62,158.57,15.7657]
[1724743022441,9.80662172,158.6,158.58,1.26332436]
[1724743022626,9.80662172,158.6,158.57,15.7657]
[1724743022812,9.80662172,158.6,158.58,1.26335033]
[1724743023137,9.80662172,158.6,158.57,15.7657]
[1724743023508,9.80662172,158.6,158.58,1.26335703]
[1724743023734,9.80662172,158.6,158.58,6.3059]
[1724743024436,9.80662172,158.6,158.58,7.56924421]
[1724743024618,2.65882233,158.62,158.58,7.56924421]
[1724743024823,9.80662172,158.61,158.58,7.56924421]
[1724743026222,9.80662172,158.61,158.58,6.3059]
[1724743026431,9.80662172,158.59,158.56,6.3063]
[1724743028526,17.53352233,158.61,158.57,6.3063]
[1724743028736,20.0,158.6,158.57,6.3063]
[1724743030345,1.56062233,158.59,158.57,6.3063]
[1724743030834,11.36724405,158.59,158.54,15.7687]
[1724743031246,11.36724405,158.59,158.55,6.307]
[1724743034138,9.80662172,158.57,158.55,6.307]
[1724743034348,9.80662172,158.57,158.54,22.0761]
[1724743035322,9.80662172,158.57,158.54,15.7687]
[1724743035724,11.36724405,158.57,158.54,15.7687]
[1724743036143,9.80662172,158.55,158.52,6.3082]
[1724743036349,9.80662172,158.55,158.51,15.7716]
[1724743036648,11.36724405,158.55,158.51,22.0799]
[1724743036847,11.36724405,158.55,158.52,6.11862474]
[1724743037049,11.36724405,158.55,158.52,5.92894948]
[1724743037250,9.80662172,158.55,158.52,5.92894948]
[1724743037444,11.36724405,158.55,158.52,5.92894948]
[1724743037645,1.09907201,158.54,158.52,5.92894948]
[1724743044349,1.09907201,158.54,158.51,15.7716]
[1724743045046,9.80662172,158.53,158.48,15.7748]
[1724743045244,11.36724405,158.53,158.48,15.7748]
[1724743045447,9.80662172,158.53,158.48,15.7748]
[1724743045643,11.36724405,158.53,158.5,6.3091]
[1724743045951,11.36724405,158.53,158.49,6.3095]
[1724743046858,11.36724405,158.53,158.49,6.11980135]
[1724743047740,9.80662172,158.53,158.49,6.11980135]
[1724743048260,9.80662172,158.51,158.48,22.0846]
[1724743048564,9.80662172,158.49,158.47,6.3102]
[1724743048767,1.56062233,158.48,158.45,22.0887]
[1724743049444,9.80662172,158.47,158.45,22.0887]
[1724743054967,9.80662172,158.47,158.43,6.3116]
[1724743055271,1.56062233,158.46,158.43,6.3116]
[1724743055760,11.36724405,158.47,158.43,6.3116]
[1724743055968,9.80662172,158.45,158.43,6.3116]
[1724743056482,9.80662172,158.45,158.42,15.7807]
[1724743056669,9.80662172,158.45,158.42,22.0926]
[1724743056845,9.80662172,158.45,158.43,6.3119]
[1724743057864,10.90590449,158.45,158.43,6.3119]
[1724743058265,10.90590449,158.45,158.42,22.0929]
[1724743062873,12.46652682,158.45,158.42,22.0929]
[1724743064054,12.46652682,158.45,158.42,13.2807]
[1724743067074,9.80662172,158.43,158.4,6.313]
[1724743067281,11.36724405,158.43,158.4,6.313]
[1724743068456,1.56062233,158.42,158.39,22.097]
[1724743068656,17.67924405,158.43,158.39,15.7836]
[1724743069477,9.80662172,158.41,158.37,6.3142]
[1724743071474,1.56062233,158.4,158.36,22.1013]
[1724743071658,31.35112172,158.41,158.36,22.1013]
[1724743073363,15.2318,158.41,158.37,1.26285368]
[1724743073566,25.03842172,158.41,158.37,1.26285368]
[1724743073757,25.03842172,158.41,158.38,6.3139]
[1724743074456,9.80662172,158.39,158.29,1.26273412]
[1724743074685,9.80662172,158.35,158.24,6.744]
[1724743075192,9.80662172,158.35,158.26,9.80662172]
[1724743075481,9.80662172,158.35,158.32,22.1063]
[1724743076475,9.80662172,158.35,158.32,15.7904]
[1724743076870,9.80662172,158.35,158.32,22.1066]
[1724743077078,1.56062233,158.34,158.32,22.1066]
[1724743077392,11.36724405,158.35,158.32,22.1066]
[1724743078181,1.09988348,158.34,158.32,22.1066]
[1724743080682,1.09988348,158.34,158.32,15.7904]
[1724743080894,9.80662172,158.33,158.3,6.3167]
[1724743081093,9.80662172,158.33,158.29,6.3174]
[1724743081389,9.80662172,158.31,158.29,6.3174]
[1724743082384,9.80662172,158.33,158.29,6.3174]
[1724743083379,1.56062233,158.32,158.29,6.3174]
[1724743084406,9.80662172,158.33,158.29,6.3174]
[1724743086773,1.56062233,158.32,158.29,6.3174]
[1724743089198,10.9065052,158.34,158.3,6.317]
[1724743089410,1.09988348,158.34,158.3,15.7919]
[1724743089586,1.09988348,158.34,158.33,6.3159]
[1724743090700,1.09988348,158.34,158.33,7.57896038]
[1724743090905,1.09988348,158.34,158.33,6.3159]
[1724743091602,1.09988348,158.34,158.33,7.57896346]
[1724743091893,1.09988348,158.34,158.33,7.57884011]
[1724743092105,1.09988348,158.34,158.33,52.57884011]
[1724743092312,1.09988348,158.34,158.33,72.57884011]
[1724743092487,1.09988348,158.34,158.33,72.57847699]
[1724743092704,22.454,158.47,158.41,6.3125]
[1724743093002,39.89671753,158.47,158.41,6.3125]
[1724743093188,1.09936449,158.46,158.41,6.3125]
[1724743093603,8.97068682,158.46,158.41,6.3125]
[1724743093921,8.97068682,158.46,158.41,6.09107527]
[1724743094200,7.87132233,158.46,158.41,5.78334919]
[1724743095110,20.0,158.45,158.41,5.78334919]
[1724743096100,20.0,158.45,158.4,15.7826]
[1724743096101,26.3112,158.45,158.4,15.7826]
[1724743096285,21.56062233,158.44,158.4,22.0957]
[1724743096492,20.0,158.44,158.4,22.0957]
[1724743098405,21.56062233,158.44,158.4,22.0957]
[1724743098612,9.80662172,158.43,158.4,22.0957]
[1724743098798,9.80662172,158.43,158.3,6.5608]
[1724743098799,1.56062233,158.42,158.38,6.3136]
[1724743100612,1.56062233,158.42,158.37,6.3141]
[1724743100613,9.80662172,158.41,158.37,6.3141]
[1724743100789,1.56062233,158.4,158.36,22.1002]
[1724743101103,6.3119,158.43,158.36,15.7859]
[1724743101312,20.0,158.42,158.37,1.26284164]
[1724743102748,20.0,158.42,158.39,6.3135]
[1724743103606,21.56062233,158.42,158.38,6.3138]
[1724743103799,9.80662172,158.41,158.36,15.7859]
[1724743104113,1.09963493,158.39,158.36,15.7859]
[1724743104909,1.09963493,158.39,158.37,6.3142]
[1724743106617,2.66025726,158.39,158.36,22.1005]
[1724743107005,12.46687898,158.39,158.36,22.1005]
[1724743108525,10.90625665,158.39,158.36,22.1005]
[1724743108708,1.09963493,158.39,158.36,22.1005]
[1724743109623,15.164,158.4,158.36,22.1005]
[1724743110818,1.56062233,158.39,158.36,22.1005]
[1724743110999,1.56062233,158.39,158.36,15.7859]
[1724743111310,11.36724405,158.39,158.36,15.7859]
[1724743112722,6.314,158.38,158.33,22.1056]
[1724743113014,11.36724405,158.37,158.33,22.1056]
[1724743113313,9.80662172,158.39,158.34,6.3152]
[1724743113519,29.80662172,158.39,158.34,6.3152]
[1724743114217,31.36724405,158.39,158.34,6.3152]
[1724743114422,37.68114405,158.39,158.34,6.3152]
[1724743114801,6.314,158.38,158.33,22.1055]
[1724743115116,1.56062233,158.37,158.33,22.1055]
[1724743116318,6.314,158.38,158.33,22.1055]
[1724743117827,7.87462233,158.38,158.33,22.1055]
[1724743118524,7.87492233,158.37,158.33,15.7897]
[1724743118725,17.68154405,158.37,158.33,15.7897]
[1724743119031,16.12092172,158.37,158.33,15.7897]
[1724743119200,16.12182172,158.35,158.3,22.1096]
[1724743119402,9.80662172,158.35,158.31,6.3167]
[1724743119992,9.80662172,158.35,158.31,6.12678587]
[1724743120623,1.09980792,158.34,158.31,6.12678587]
[1724743124113,1.09980792,158.34,158.32,6.3162]
[1724743124718,1.09980792,158.34,158.33,6.3159]
[1724743125103,1.09980792,158.34,158.32,22.1063]
[1724743130002,1.09980792,158.34,158.32,21.91639489]
[1724743131023,1.09980792,158.34,158.32,15.60019489]
[1724743132833,1.09980792,158.34,158.32,21.91639489]
[1724743138915,1.09980792,158.34,158.32,15.60019489]
[1724743140039,1.09980792,158.34,158.32,14.97030696]
[1724743141829,1.14780792,158.34,158.32,14.97030696]
[1724743142332,1.14780792,158.34,158.32,16.2335536]
[1724743142519,1.14780792,158.34,158.32,14.97030696]
[1724743143323,1.14780792,158.34,158.33,1.26312197]
[1724743143515,1.14780792,158.34,158.32,14.97030696]
[1724743143716,1.14780792,158.34,158.33,6.3159]
[1724743148931,1.14780792,158.34,158.32,21.28650696]
[1724743149736,1.14780792,158.34,158.33,6.3159]
[1724743151840,1.14780792,158.34,158.32,21.28650696]
[1724743152023,0.52990184,158.33,158.32,21.28650696]
[1724743153718,0.52990184,158.33,158.28,15.794]
[1724743153913,0.52990184,158.33,158.29,45.0]
[1724743154726,0.52990184,158.33,158.31,6.3166]
[1724743157718,0.048,158.34,158.31,6.3166]
[1724743163049,0.048,158.34,158.32,6.316]
[1724743164243,15.9741,158.35,158.32,6.316]
[1724743164850,15.9741,158.35,158.31,22.1079]
[1724743165142,1.56062233,158.34,158.31,22.1079]
[1724743169457,15.9741,158.35,158.31,22.1079]
[1724743170935,17.53472233,158.35,158.31,22.1079]
[1724743171138,15.9741,158.35,158.31,22.1079]
[1724743172049,15.9741,158.35,158.32,6.3161]
[1724743172448,15.9741,158.35,158.32,7.57924242]
[1724743172831,15.9741,158.35,158.32,7.57923992]
[1724743173531,15.9741,158.35,158.33,6.3158]
[1724743173735,20.0,158.37,158.31,15.7913]
[1724743174228,20.0,158.37,158.34,6.3155]
[1724743176053,20.0,158.38,158.34,6.3155]
[1724743176464,15.7615,158.39,158.36,6.3146]
[1724743176637,397.2793,158.43,158.39,6.3133]
[1724743176840,15.9793,158.43,158.4,1.26255117]
[1724743177152,15.9793,158.43,158.41,6.3126]
[1724743181859,17.53992233,158.43,158.38,15.7838]
[1724743182051,17.53992233,158.43,158.38,22.0976]
[1724743182239,17.53992233,158.43,158.39,6.3135]
[1724743182856,1.56062233,158.42,158.39,6.3135]
[1724743186354,397.2793,158.43,158.39,6.3135]
[1724743187533,397.2793,158.43,158.4,6.313]
[1724743188640,397.2793,158.43,158.39,6.3134]
[1724743190858,1.56062233,158.42,158.39,6.3134]
[1724743191860,1.56062233,158.42,158.38,22.0976]
[1724743193458,22.2913,158.43,158.38,22.0976]
[1724743193754,22.2913,158.43,158.39,6.3134]
[1724743194158,22.2913,158.43,158.38,22.0976]
[1724743194461,1.56062233,158.42,158.38,22.0976]
[1724743195856,17.67954405,158.42,158.36,6.3143]
[1724743196053,6.3128,158.41,158.36,6.3143]
[1724743196254,15.9793,158.43,158.36,6.3143]
[1724743196255,17.68034405,158.4,158.36,6.3143]
[1724743196446,1.56062233,158.39,158.36,6.3143]
[1724743198772,1.56062233,158.39,158.35,22.1025]
[1724743199271,16.12062172,158.38,158.33,6.3158]
[1724743199472,1.56062233,158.37,158.33,6.3158]
[1724743200170,1.56062233,158.37,158.33,5.3158]
[1724743200968,1.10029291,158.36,158.33,5.3158]
[1724743201272,2.66091524,158.36,158.33,5.3158]
[1724743202787,1.10029291,158.36,158.33,5.3158]
[1724743202976,1.10029291,158.36,158.34,6.3155]
[1724743203975,1.10029291,158.36,158.34,5.2155]
[1724743204473,1.10029291,158.36,158.35,7.57803317]
[1724743204970,1.10029291,158.36,158.35,52.57803317]
[1724743205165,15.3273,158.43,158.38,6.3137]
[1724743205347,15.3273,158.43,158.39,6.3135]
[1724743205547,1.09976433,158.42,158.39,6.3135]
[1724743206684,2.66038666,158.42,158.38,6.3138]
[1724743208066,1.09976433,158.42,158.38,6.3138]
[1724743208447,2.66038666,158.42,158.38,6.3138]
[1724743208671,28.97268666,158.42,158.37,22.0996]
[1724743210070,28.97268666,158.42,158.38,6.3138]
[1724743210071,21.09976433,158.42,158.38,6.3138]
[1724743210276,1.09976433,158.42,158.37,25.59202172]
[1724743210570,1.09976433,158.42,158.38,1.26255104]
[1724743210772,1.09976433,158.42,158.4,6.313]
[1724743210975,1.09976433,158.42,158.39,6.3135]
[1724743215887,1.09976433,158.42,158.37,15.7854]
[1724743215888,9.80662172,158.41,158.37,15.7854]
[1724743216186,1.56062233,158.4,158.37,15.7854]
[1724743216760,1.56062233,158.4,158.37,22.0997]
[1724743217174,1.56062233,158.4,158.37,15.7854]
[1724743217884,11.36724405,158.4,158.37,15.7854]
[1724743218077,1.56062233,158.39,158.37,15.7854]
[1724743219261,9.80662172,158.4,158.37,22.0996]
[1724743219865,11.36724405,158.4,158.37,22.0996]
[1724743220197,1.09976433,158.42,158.34,22.1039]
[1724743220198,9.80662172,158.38,158.34,22.1039]
[1724743220476,1.56062233,158.37,158.34,22.1039]
[1724743221068,7.87512233,158.37,158.32,6.3159]
[1724743221270,16.12132172,158.36,158.31,22.1082]
[1724743221469,1.56062233,158.35,158.31,22.1082]
[1724743222288,9.80662172,158.34,158.28,15.7946]
[1724743222460,9.80662172,158.32,158.28,22.1124]
[1724743222661,35.777,158.38,158.29,1.26344523]
[1724743222887,9.80662172,158.35,158.3,6.317]
[1724743223091,20.0,158.34,158.3,6.317]
[1724743223865,20.0,158.34,158.31,6.3166]
[1724743224163,20.0,158.35,158.31,6.3166]
[1724743225868,1.10028996,158.34,158.31,6.3166]
[1724743226990,1.10028996,158.34,158.29,6.3171]
[1724743227371,1.10028996,158.34,158.3,6.317]
[1724743231311,2.66091229,158.34,158.3,6.317]
[1724743231782,9.80662172,158.33,158.3,6.317]
[1724743233403,9.80662172,158.33,158.29,6.3174]
[1724743233574,1.56062233,158.32,158.29,6.3174]
[1724743233779,1.56062233,158.32,158.28,22.1124]
[1724743233984,1.1002,158.29,158.28,15.7946]
[1724743234900,1.1002,158.29,158.28,22.1125]
[1724743237002,1.1002,158.29,158.28,31.91912172]
[1724743238993,1.1002,158.29,158.28,22.1125]
[1724743239889,6.4256,158.34,158.29,6.3171]
[1724743240081,6.4256,158.34,158.29,7.58040181]
[1724743242387,6.4256,158.34,158.3,6.317]
[1724743244179,6.4256,158.34,158.31,1.26330223]
[1724743244402,6.4256,158.34,158.3,6.317]
[1724743245393,6.4256,158.34,158.31,1.26320662]
[1724743245996,6.4256,158.34,158.3,6.317]
[1724743250309,6.4256,158.34,158.3,6.12707986]
[1724743250811,1.10043668,158.33,158.3,6.12707986]
[1724743260091,1.10043668,158.33,158.3,5.93714845]
[1724743260496,1.10043668,158.33,158.28,15.7946]
[1724743260497,9.80662172,158.32,158.28,22.1124]
[1724743261120,8.97725901,158.33,158.28,22.1124]
[1724743261508,7.41663668,158.33,158.28,22.1124]
[1724743262013,8.97725901,158.33,158.28,22.1124]
[1724743262519,17.2232584,158.33,158.28,22.1124]
[1724743266092,18.78388073,158.33,158.28,22.1124]
[1724743266416,1.56062233,158.32,158.28,22.1124]
[1724743270213,1.56062233,158.32,158.28,21.92245423]
[1724743271122,1.10060454,158.31,158.28,21.92245423]
[1724743272025,1.10060454,158.31,158.29,7.58079037]
[1724743272228,1.10060454,158.31,158.3,6.3171]
[1724743274218,1.10060454,158.31,158.3,5.78669734]
[1724743282118,1.10060454,158.31,158.29,6.3174]
[1724743293337,1.10060454,158.31,158.28,15.60465423]
[1724743294628,1.10060454,158.31,158.29,6.3174]
[1724743295745,21.9747,158.3,158.26,6.3183]
[1724743296131,20.0,158.29,158.26,6.3183]
[1724743296443,21.1007077,158.29,158.26,6.3183]
[1724743297655,22.66133003,158.29,158.26,6.3183]
[1724743297826,21.1007077,158.29,158.26,6.3183]
[1724743298157,22.66133003,158.29,158.26,6.3183]
[1724743298848,21.1007077,158.29,158.21,15.8008]
[1724743299024,21.1007077,158.29,158.22,3.35838314]
[1724743299025,22.66133003,158.29,158.22,3.35838314]
[1724743299226,9.80662172,158.27,158.21,15.8008]
[1724743299440,20.0,158.26,158.21,15.8008]
[1724743299641,20.0,158.26,158.22,6.3202]
[1724743300738,20.0,158.26,158.23,1.26386042]
[1724743300927,20.0,158.26,158.23,1.26383506]
[1724743301130,1.1007077,158.29,158.25,6.319]
[1724743301329,1.1007077,158.29,158.25,7.58260418]
[1724743301746,1.1007077,158.29,158.25,6.319]
[1724743303059,21.1007077,158.29,158.25,6.319]
[1724743309150,1.1007077,158.29,158.28,6.3179]
[1724743309448,1.1007077,158.29,158.28,7.58122606]
[1724743309958,1.1007077,158.29,158.28,52.58122606]
[1724743310261,1.1007077,158.29,158.28,62.38784778]
[1724743310628,15.685,158.39,158.34,15.7886]
[1724743310858,1.10000547,158.35,158.34,22.1037]
[1724743311043,15.685,158.39,158.34,67.1037]
[1724743311237,15.685,158.39,158.34,22.1037]
[1724743312253,15.685,158.39,158.3,15.7919]
[1724743312254,31.36724405,158.38,158.3,15.7919]
[1724743312459,31.36724405,158.38,158.31,51.3163]
[1724743312460,37.68124405,158.38,158.31,51.3163]
[1724743313139,1.1002657,158.37,158.31,51.3163]
[1724743313342,1.56062233,158.36,158.31,51.3163]
[1724743313747,1.56062233,158.36,158.32,6.3163]
[1724743314040,2.66088803,158.37,158.32,6.3163]
[1724743315654,1.1002657,158.37,158.32,6.3163]
[1724743316741,2.66088803,158.37,158.32,6.3163]
[1724743316942,8.97528803,158.37,158.32,6.3163]
[1724743320048,8.97528803,158.37,158.31,6.3166]
[1724743320240,29.80662172,158.36,158.31,6.3166]
[1724743320441,36.12142172,158.36,158.31,6.3166]
[1724743320635,7.87582233,158.35,158.3,15.7919]
[1724743320849,1.56062233,158.35,158.26,15.7965]
[1724743321055,1.56062233,158.35,158.27,45.0]
[1724743321236,6.3155,158.34,158.29,6.3171]
[1724743321660,7.87572233,158.35,158.29,6.3171]
[1724743322059,6.3151,158.35,158.29,6.3171]
[1724743322645,29.80662172,158.36,158.28,15.7939]
[1724743322842,29.80662172,158.36,158.31,6.3164]
[1724743323047,37.68234405,158.36,158.3,6.317]
[1724743323262,1.56062233,158.35,158.3,6.317]
[1724743324463,9.80662172,158.34,158.3,6.317]
[1724743325141,1.56062233,158.33,158.29,6.3174]
[1724743325340,6.3159,158.33,158.28,15.7939]
[1724743325661,6.3159,158.33,158.28,17.05731705]